bitfinex-derivatives/quotes_BTCF0:USTF0_20251228
["timestamp","ask_amount","ask_price","bid_price","bid_amount"]
[1766935401781,0.02565349,88018.0,88003.0,0.0113711]
[1766935401983,0.05688,88021.0,88003.0,0.0113711]
[1766935402184,0.0256583,88020.0,88003.0,0.0113711]
[1766935402490,0.0256583,88019.0,88003.0,0.0113711]
[1766935402692,0.05688,88021.0,88003.0,0.0113711]
[1766935402693,0.0256583,88018.0,88003.0,0.0113711]
[1766935402894,0.05688,88021.0,88003.0,0.0113711]
[1766935403094,0.02565826,88020.0,88003.0,0.0113711]
[1766935403294,0.02565826,88019.0,88003.0,0.0113711]
[1766935403594,0.02565826,88018.0,88003.0,0.0113711]
[1766935403797,0.05688,88021.0,88003.0,0.0113711]
[1766935403994,0.02565823,88020.0,88003.0,0.0113711]
[1766935404294,0.02565823,88019.0,88003.0,0.0113711]
[1766935404496,0.02565823,88018.0,88003.0,0.0113711]
[1766935404687,0.05688,88021.0,88003.0,0.0113711]
[1766935404889,0.02565822,88020.0,88003.0,0.0113711]
[1766935405089,0.02565822,88019.0,88003.0,0.0113711]
[1766935405389,0.02565822,88018.0,88003.0,0.0113711]
[1766935405589,0.05688,88021.0,88003.0,0.0113711]
[1766935405787,0.02565823,88020.0,88003.0,0.0113711]
[1766935405987,0.02565823,88019.0,88003.0,0.0113711]
[1766935406196,0.02565823,88018.0,88003.0,0.0113711]
[1766935406389,0.05688,88021.0,88003.0,0.0113711]
[1766935406589,0.02565825,88020.0,88003.0,0.0113711]
[1766935406789,0.02565825,88019.0,88003.0,0.0113711]
[1766935406989,0.02565825,88018.0,88003.0,0.0113711]
[1766935407197,0.05688,88021.0,88003.0,0.0113711]
[1766935407387,0.02565826,88020.0,88003.0,0.0113711]
[1766935407587,0.02565826,88019.0,88003.0,0.0113711]
[1766935407786,0.02565826,88018.0,88003.0,0.0113711]
[1766935407999,0.05688,88021.0,88003.0,0.0113711]
[1766935408294,0.02565826,88020.0,88003.0,0.0113711]
[1766935408490,0.02565826,88019.0,88003.0,0.0113711]
[1766935408683,0.02565826,88018.0,88003.0,0.0113711]
[1766935408888,0.0682488,88022.0,88003.0,0.0113711]
[1766935409096,0.02565828,88021.0,88003.0,0.0113711]
[1766935409288,0.02565828,88020.0,88003.0,0.0113711]
[1766935409488,0.02565828,88019.0,88003.0,0.0113711]
[1766935409688,0.02565828,88018.0,88003.0,0.0113711]
[1766935409892,0.0682488,88022.0,88003.0,0.0113711]
[1766935410091,0.02565832,88021.0,88003.0,0.0113711]
[1766935410297,0.02565832,88020.0,88003.0,0.0113711]
[1766935410501,0.02565832,88019.0,88003.0,0.0113711]
[1766935410690,0.02565832,88018.0,88003.0,0.0113711]
[1766935410890,0.0682488,88022.0,88003.0,0.0113711]
[1766935411090,0.02565833,88021.0,88003.0,0.0113711]
[1766935411296,0.02565833,88020.0,88003.0,0.0113711]
[1766935411488,0.02565833,88019.0,88003.0,0.0113711]
[1766935411698,0.02565833,88018.0,88003.0,0.0113711]
[1766935411899,0.0682488,88022.0,88003.0,0.0113711]
[1766935412098,0.02565839,88021.0,88003.0,0.0113711]
[1766935412293,0.02565839,88020.0,88003.0,0.0113711]
[1766935412493,0.02565839,88019.0,88003.0,0.0113711]
[1766935412793,0.02565839,88018.0,88003.0,0.0113711]
[1766935412998,0.0113688,88022.0,88003.0,0.0113711]
[1766935413197,0.02565841,88021.0,88003.0,0.0113711]
[1766935413397,0.02565841,88020.0,88003.0,0.0113711]
[1766935413699,0.02565841,88019.0,88003.0,0.0113711]
[1766935413997,0.02565841,88018.0,88003.0,0.0113711]
[1766935414197,0.0682488,88022.0,88003.0,0.0113711]
[1766935414497,0.02565842,88021.0,88003.0,0.0113711]
[1766935414699,0.02565842,88020.0,88003.0,0.0113711]
[1766935414895,0.02565842,88019.0,88005.0,0.0113708]
[1766935415096,0.02565842,88018.0,88005.0,0.0113708]
[1766935415295,0.15352,88023.0,88005.0,0.0113708]
[1766935415499,0.02565841,88022.0,88005.0,0.0113708]
[1766935415697,0.02565841,88021.0,88005.0,0.0113708]
[1766935415897,0.02565841,88020.0,88005.0,0.0113708]
[1766935416099,0.02565841,88019.0,88005.0,0.0113708]
[1766935416300,0.02565841,88018.0,88005.0,0.0113708]
[1766935416500,0.1648886,88023.0,88005.0,0.0113708]
[1766935416790,0.02565841,88022.0,88005.0,0.0113708]
[1766935416988,0.02565841,88021.0,88005.0,0.0113708]
[1766935417198,0.02565841,88020.0,88005.0,0.0113708]
[1766935417400,0.02565841,88019.0,88002.0,0.0113712]
[1766935417704,0.02565841,88018.0,88002.0,0.0113712]
[1766935417913,0.1648886,88023.0,88002.0,0.0113712]
[1766935418103,0.0256584,88022.0,88002.0,0.0113712]
[1766935418296,0.0256584,88021.0,88002.0,0.0113712]
[1766935418497,0.0256584,88020.0,88002.0,0.0113712]
[1766935418701,0.0256584,88019.0,88002.0,0.0113712]
[1766935418899,0.0256584,88018.0,88002.0,0.0113712]
[1766935419198,0.1648886,88023.0,88002.0,0.0113712]
[1766935419502,0.1648886,88023.0,88004.0,0.0113709]
[1766935419503,0.02565585,88022.0,88004.0,0.0113709]
[1766935419705,0.02565585,88021.0,88004.0,0.0113709]
[1766935420003,0.02565585,88020.0,88004.0,0.0113709]
[1766935420205,0.02565585,88019.0,88004.0,0.0113709]
[1766935420391,0.02565585,88018.0,88004.0,0.0113709]
[1766935420592,0.1648886,88023.0,88004.0,0.0113709]
[1766935420797,0.02565554,88022.0,88004.0,0.0113709]
[1766935420991,0.02565554,88021.0,88004.0,0.0113709]
[1766935421191,0.02565554,88020.0,88004.0,0.0113709]
[1766935421403,0.02565554,88019.0,88004.0,0.0113709]
[1766935421601,0.02565554,88018.0,88004.0,0.0113709]
[1766935421803,0.1648886,88023.0,88004.0,0.0113709]
[1766935422004,0.0256555,88022.0,88004.0,0.0113709]
[1766935422204,0.0256555,88021.0,88004.0,0.0113709]
[1766935422405,0.0256555,88020.0,88005.0,0.01777516]
[1766935422607,0.0256555,88019.0,88006.0,0.01777516]
[1766935422799,0.0256555,88018.0,88007.0,0.01777516]
[1766935422998,0.1648886,88023.0,88008.0,0.01777515]
[1766935423198,0.02565557,88022.0,88009.0,0.01777515]
[1766935423404,0.02565557,88021.0,88004.0,0.0113709]
[1766935423597,0.02565557,88020.0,88004.0,0.0113709]
[1766935423809,0.1648886,88023.0,88004.0,0.0113709]
[1766935423810,0.02565557,88019.0,88004.0,0.0113709]
[1766935424013,0.02565557,88018.0,88004.0,0.0113709]
[1766935424216,0.1648886,88023.0,88004.0,0.0113709]
[1766935424416,0.02565534,88022.0,88004.0,0.0113709]
[1766935424616,0.02565534,88021.0,88004.0,0.0113709]
[1766935424816,0.02565534,88020.0,88004.0,0.0113709]
[1766935425017,0.02565534,88019.0,88004.0,0.0113709]
[1766935425221,0.02565534,88018.0,88001.0,0.0113714]
[1766935425410,0.0113692,88019.0,88001.0,0.0113714]
[1766935425606,0.02565534,88018.0,88001.0,0.0113714]
[1766935425805,0.0113692,88019.0,88001.0,0.0113714]
[1766935426010,0.02565532,88018.0,88001.0,0.0113714]
[1766935426216,0.0113692,88019.0,88001.0,0.0113714]
[1766935426416,0.02565504,88018.0,88001.0,0.0113714]
[1766935426618,0.0113692,88019.0,88001.0,0.0113714]
[1766935426814,0.02565502,88018.0,88001.0,0.0113714]
[1766935427020,0.0113692,88019.0,88001.0,0.0113714]
[1766935427222,0.02565504,88018.0,88001.0,0.0113714]
[1766935427423,0.0113692,88019.0,88001.0,0.0113714]
[1766935427723,0.02565499,88018.0,88001.0,0.0113714]
[1766935427924,0.0113692,88019.0,88001.0,0.0113714]
[1766935428122,0.02565499,88018.0,88001.0,0.0113714]
[1766935428313,0.0113692,88019.0,88001.0,0.0113714]
[1766935428516,0.0113694,88017.0,88001.0,0.0113714]
[1766935434829,0.011369,88020.0,88001.0,0.0113714]
[1766935435130,0.02566029,88019.0,88001.0,0.0113714]
[1766935435427,0.02566029,88018.0,88001.0,0.0113714]
[1766935435628,0.011369,88020.0,88001.0,0.0113714]
[1766935435829,0.02566036,88019.0,88001.0,0.0113714]
[1766935436019,0.011369,88020.0,88001.0,0.0113714]
[1766935436020,0.02566036,88018.0,88001.0,0.0113714]
[1766935436322,0.0113682,88026.0,87999.0,0.15352]
[1766935436528,0.02566044,88025.0,88005.0,0.0113708]
[1766935436721,0.02566044,88024.0,88005.0,0.0113708]
[1766935436922,0.02566044,88023.0,88005.0,0.0113708]
[1766935437221,0.02566044,88022.0,88005.0,0.0113708]
[1766935437420,0.02566044,88021.0,88005.0,0.0113708]
[1766935437629,0.02566044,88020.0,88005.0,0.0113708]
[1766935437831,0.1648882,88026.0,88005.0,0.0113708]
[1766935437832,0.02566044,88019.0,88005.0,0.0113708]
[1766935438125,0.02566044,88018.0,88005.0,0.0113708]
[1766935438327,0.1648882,88026.0,88005.0,0.0113708]
[1766935438524,0.02565862,88025.0,88007.0,0.0113706]
[1766935438726,0.02565862,88024.0,88008.0,0.01777488]
[1766935438926,0.02565862,88023.0,88009.0,0.01777488]
[1766935439116,0.02565862,88022.0,88010.0,0.01777488]
[1766935439325,0.02565862,88021.0,88011.0,0.01777488]
[1766935439525,0.02565862,88020.0,88012.0,0.01777488]
[1766935439721,0.02565862,88019.0,88013.0,0.01777488]
[1766935439921,0.02565862,88018.0,88014.0,0.01777488]
[1766935440132,0.1648882,88026.0,88015.0,0.01777488]
[1766935440434,0.02565805,88025.0,88016.0,0.0177749]
[1766935440623,0.02565805,88024.0,88017.0,0.0177749]
[1766935440932,0.02565805,88023.0,88018.0,0.0177749]
[1766935441228,0.02565805,88023.0,87999.0,0.15352]
[1766935441229,0.02565805,88022.0,88009.0,0.0113703]
[1766935441428,0.02565805,88021.0,88009.0,0.0113703]
[1766935441629,0.02565805,88020.0,88009.0,0.0113703]
[1766935441824,0.1648882,88026.0,88009.0,0.0113703]
[1766935441825,0.02565805,88019.0,88009.0,0.0113703]
[1766935442025,0.02565805,88018.0,88009.0,0.0113703]
[1766935442328,0.1648882,88026.0,88009.0,0.0113703]
[1766935442530,0.02565779,88025.0,88009.0,0.0113703]
[1766935442829,0.02565779,88024.0,88009.0,0.0113703]
[1766935443030,0.02565779,88023.0,88009.0,0.0113703]
[1766935443229,0.02565779,88022.0,88009.0,0.0113703]
[1766935443430,0.02565779,88021.0,88009.0,0.0113703]
[1766935443631,0.02565779,88020.0,88009.0,0.0113703]
[1766935443932,0.02565779,88019.0,88009.0,0.0113703]
[1766935444230,0.02565779,88018.0,88006.0,0.0113707]
[1766935444432,0.1648882,88026.0,88006.0,0.0113707]
[1766935444624,0.0113685,88024.0,88003.0,0.0113711]
[1766935444819,0.02565741,88023.0,88003.0,0.0113711]
[1766935445032,0.011369,88020.0,88000.0,0.0113715]
[1766935445232,0.02565741,88019.0,88000.0,0.0113715]
[1766935450746,0.0113692,88018.0,88000.0,0.0113715]
[1766935454248,0.0113692,88018.0,88002.0,0.0113712]
[1766935456647,0.0113692,88018.0,88002.0,0.1080112]
[1766935460351,0.0113692,88018.0,88004.0,0.0113709]
[1766935461249,0.0113692,88018.0,88002.0,0.09664]
[1766935468658,0.0113692,88018.0,88003.0,0.0113711]
[1766935471262,0.0113692,88018.0,88002.0,0.09664]
[1766935471557,0.15352,88026.0,88002.0,0.09664]
[1766935471558,0.0113695,88016.0,88003.0,0.05688]
[1766935473754,0.0113698,88014.0,88003.0,0.05688]
[1766935474060,0.15352,88026.0,87997.0,0.01154234]
[1766935474061,0.0113708,88006.0,87997.0,0.00017044]
[1766935474262,0.0113714,88002.0,87992.0,0.05688]
[1766935474655,0.0113709,88006.0,87987.0,0.1648932]
[1766935475456,0.00017044,88005.0,87988.0,0.00017044]
[1766935477060,0.0113711,88004.0,87988.0,0.00017044]
[1766935484763,0.0113714,88002.0,87988.0,4.4e-07]
[1766935491470,0.0113719,87997.0,87988.0,4.4e-07]
[1766935491969,0.00017044,88005.0,87988.0,4.4e-07]
[1766935493570,0.0113716,88000.0,87988.0,4.4e-07]
[1766935494272,0.0113719,87997.0,87988.0,4.4e-07]
[1766935497363,0.0113715,88000.0,87988.0,4.4e-07]
[1766935497663,0.0113719,87998.0,87988.0,4.4e-07]
[1766935499970,0.00017044,88005.0,87983.0,0.00227318]
[1766935500171,0.02566803,88004.0,87983.0,3.18e-06]
[1766935500371,0.0113725,87993.0,87983.0,3.18e-06]
[1766935501068,0.0113721,87996.0,87983.0,3.18e-06]
[1766935501275,0.0113717,87999.0,87983.0,3.18e-06]
[1766935501473,0.05688,88001.0,87983.0,3.18e-06]
[1766935501663,0.0682515,88001.0,87985.0,0.0113734]
[1766935501861,0.0113717,87999.0,87983.0,3.18e-06]
[1766935502066,0.05688,88001.0,87983.0,3.18e-06]
[1766935502067,0.011372,87997.0,87983.0,3.18e-06]
[1766935502881,0.0113723,87995.0,87983.0,3.18e-06]
[1766935506480,0.0113718,87998.0,87983.0,3.18e-06]
[1766935506782,0.0682515,88001.0,87984.0,0.0113736]
[1766935507082,0.0113717,87999.0,87984.0,0.0113736]
[1766935507882,0.16667551,88000.0,87984.0,0.0113736]
[1766935508382,0.1536,88000.0,87984.0,0.0113736]
[1766935512484,0.05692,87999.0,87984.0,0.0113736]
[1766935513981,0.0113713,88002.0,87984.0,0.0113736]
[1766935514287,0.17928936,88001.0,87984.0,0.0113736]
[1766935514588,0.02568936,88000.0,87984.0,0.0113736]
[1766935515287,0.08260936,87999.0,87984.0,0.0113736]
[1766935515585,0.05692,87999.0,87984.0,0.0113736]
[1766935515785,0.05692,87998.0,87984.0,0.0113736]
[1766935516787,0.05692,87998.0,87986.0,0.0113733]
[1766935516980,0.05692,87999.0,87988.0,0.011373]
[1766935517675,0.00017044,88005.0,87988.0,0.011373]
[1766935517888,0.0826128,88004.0,87988.0,0.011373]
[1766935518079,0.0256928,88003.0,87988.0,0.011373]
[1766935518887,0.0256928,88003.0,87990.0,0.0113727]
[1766935519281,0.0256948,88002.0,87990.0,0.0113727]
[1766935519482,0.05692,88004.0,87990.0,0.0113727]
[1766935519682,0.02569494,88003.0,87990.0,0.0113727]
[1766935519889,0.02569494,88002.0,87986.0,0.0113732]
[1766935520090,0.05692,88004.0,87986.0,0.0113732]
[1766935520388,0.02569621,88003.0,87986.0,0.0113732]
[1766935520584,0.02569621,88002.0,87986.0,0.0113732]
[1766935520781,0.05692,88004.0,87986.0,0.0113732]
[1766935520982,0.02569615,88003.0,87986.0,0.0113732]
[1766935521183,0.02569615,88002.0,87986.0,0.0113732]
[1766935521384,0.05692,88004.0,87986.0,0.0113732]
[1766935521687,0.02569768,88003.0,87983.0,3.18e-06]
[1766935521890,0.02569768,88002.0,87983.0,3.18e-06]
[1766935522188,0.05692,88004.0,87983.0,3.18e-06]
[1766935522389,0.02570299,88003.0,87983.0,3.18e-06]
[1766935522590,0.02570299,88002.0,87983.0,3.18e-06]
[1766935522890,0.05692,88004.0,87983.0,3.18e-06]
[1766935523090,0.025703,88003.0,87983.0,3.18e-06]
[1766935523289,0.025703,88002.0,87983.0,3.18e-06]
[1766935523589,0.05692,88004.0,87983.0,3.18e-06]
[1766935523791,0.02570317,88003.0,87983.0,3.18e-06]
[1766935524092,0.02570317,88002.0,87983.0,3.18e-06]
[1766935524393,0.05692,88004.0,87991.0,0.0113726]
[1766935524586,0.02570335,88003.0,87991.0,0.0113726]
[1766935524893,0.02570335,88002.0,87991.0,0.0113726]
[1766935525092,0.05692,88004.0,87991.0,0.0113726]
[1766935525291,0.02570353,88003.0,87991.0,0.0113726]
[1766935525492,0.02570353,88003.0,87983.0,3.18e-06]
[1766935525493,0.00017044,88005.0,87993.0,0.0113724]
[1766935525685,0.05692,88013.0,87993.0,0.0113724]
[1766935525878,0.02570521,88012.0,87994.0,0.0177769]
[1766935526079,0.02570521,88011.0,87995.0,0.0177769]
[1766935526284,0.02570521,88010.0,87996.0,0.0177769]
[1766935526494,0.05692,88013.0,87997.0,0.0177769]
[1766935526795,0.02569914,88012.0,87993.0,0.0113724]
[1766935526995,0.02569914,88011.0,87993.0,0.0113724]
[1766935527191,0.05692,88013.0,87993.0,0.0113724]
[1766935527387,0.02569473,88012.0,87993.0,0.0113724]
[1766935527592,0.02569473,88011.0,87993.0,0.0113724]
[1766935527792,0.02569473,88010.0,87993.0,0.0113724]
[1766935527998,0.05692,88013.0,87993.0,0.0113724]
[1766935528197,0.0256946,88012.0,87993.0,0.0113724]
[1766935528395,0.0256946,88011.0,87993.0,0.0113724]
[1766935528597,0.0256946,88010.0,87993.0,0.0113724]
[1766935528798,0.0113701,88012.0,87993.0,0.0113724]
[1766935528998,0.02569135,88011.0,87993.0,0.0113724]
[1766935529196,0.02569135,88010.0,87993.0,0.0113724]
[1766935529398,0.0113701,88012.0,87993.0,0.0113724]
[1766935529701,0.02568854,88011.0,87993.0,0.0113724]
[1766935529900,0.02568854,88010.0,87993.0,0.0113724]
[1766935530089,0.0113701,88012.0,87993.0,0.0113724]
[1766935530389,0.02568667,88011.0,87993.0,0.0113724]
[1766935530592,0.02568667,88010.0,87993.0,0.0113724]
[1766935530884,0.0113701,88012.0,87993.0,0.0113724]
[1766935531199,0.02568669,88011.0,87993.0,0.0113724]
[1766935531397,0.02568669,88010.0,87993.0,0.0113724]
[1766935531599,0.0113701,88012.0,87993.0,0.0113724]
[1766935531798,0.0113703,88010.0,87993.0,0.0113724]
[1766935533903,0.0113703,88010.0,87989.0,0.0113728]
[1766935534105,0.05692,88013.0,87989.0,0.0113728]
[1766935534395,0.02568209,88012.0,87989.0,0.0113728]
[1766935534601,0.02568209,88011.0,87989.0,0.0113728]
[1766935534801,0.02568209,88010.0,87989.0,0.0113728]
[1766935535000,0.05692,88013.0,87989.0,0.0113728]
[1766935535201,0.02568176,88012.0,87989.0,0.0113728]
[1766935535393,0.02568176,88011.0,87989.0,0.0113728]
[1766935535594,0.02568176,88010.0,87989.0,0.0113728]
[1766935535795,0.0113707,88007.0,87989.0,0.0113728]
[1766935539005,0.0113707,88007.0,87991.0,0.0113726]
[1766935539200,0.05692,88013.0,87994.0,0.0113722]
[1766935539406,0.02568206,88012.0,87988.0,0.09668]
[1766935539603,0.02568206,88011.0,87988.0,0.09668]
[1766935539805,0.0113703,88010.0,87993.0,0.0113724]
[1766935540198,0.0113699,88013.0,87995.0,0.0113721]
[1766935540507,0.00017044,88014.0,87988.0,0.09668]
[1766935540508,0.0113702,88011.0,87992.0,0.0113725]
[1766935544107,0.02568549,88010.0,87992.0,0.0113725]
[1766935544299,0.0113702,88011.0,87992.0,0.0113725]
[1766935544499,0.0256855,88010.0,87992.0,0.0113725]
[1766935544699,0.0113702,88011.0,87992.0,0.0113725]
[1766935544998,0.02568551,88010.0,87992.0,0.0113725]
[1766935545197,0.0113702,88011.0,87992.0,0.0113725]
[1766935545397,0.0256872,88010.0,87992.0,0.0113725]
[1766935545608,0.0113702,88011.0,87992.0,0.0113725]
[1766935545906,0.0256872,88010.0,87992.0,0.0113725]
[1766935546207,0.0113702,88011.0,87992.0,0.0113725]
[1766935546507,0.025689,88010.0,87992.0,0.0113725]
[1766935546703,0.0113702,88011.0,87992.0,0.0113725]
[1766935546902,0.025689,88010.0,87994.0,0.0113722]
[1766935547103,0.0113702,88011.0,87994.0,0.0113722]
[1766935547406,0.02569007,88010.0,87994.0,0.0113722]
[1766935547605,0.0113702,88011.0,87994.0,0.0113722]
[1766935547803,0.02568994,88010.0,87996.0,0.011372]
[1766935548002,0.15356,88012.0,87996.0,0.011372]
[1766935548203,0.0256896,88011.0,87996.0,0.011372]
[1766935548404,0.0256896,88010.0,87998.0,0.0113717]
[1766935548606,0.00017044,88014.0,87998.0,0.0113717]
[1766935548607,0.05688,88013.0,87998.0,0.0113717]
[1766935548806,0.02569136,88012.0,87998.0,0.0113717]
[1766935548999,0.02569136,88011.0,87998.0,0.0113717]
[1766935549204,0.02569136,88010.0,87995.0,0.01154254]
[1766935549406,0.05688,88013.0,87995.0,0.01154254]
[1766935549601,0.02569243,88012.0,87995.0,0.01154254]
[1766935549812,0.02569243,88011.0,87995.0,0.01154254]
[1766935550111,0.02569243,88010.0,87995.0,0.01154254]
[1766935550305,0.0682499,88013.0,87995.0,0.01154254]
[1766935550503,0.02569361,88012.0,87995.0,0.01154254]
[1766935550704,0.02569361,88011.0,87995.0,0.01154254]
[1766935550903,0.02569361,88010.0,87995.0,0.01154254]
[1766935551103,0.0682499,88013.0,87995.0,0.01154254]
[1766935551403,0.02569549,88012.0,87995.0,0.01154254]
[1766935551605,0.02569549,88011.0,87995.0,0.01154254]
[1766935551812,0.02569549,88010.0,87995.0,0.01154254]
[1766935552115,0.0682499,88013.0,87995.0,0.01154254]
[1766935552410,0.02594282,88012.0,87995.0,0.01154254]
[1766935552611,0.02594282,88011.0,87995.0,0.01154254]
[1766935552800,0.02594282,88010.0,87995.0,0.01154254]
[1766935553000,0.02594282,88009.0,87995.0,0.01154254]
[1766935553212,0.0682499,88013.0,87995.0,0.01154254]
[1766935553512,0.02594567,88012.0,87995.0,0.01154254]
[1766935553712,0.02594567,88011.0,87995.0,0.01154254]
[1766935553904,0.02594567,88010.0,87995.0,0.01154254]
[1766935554107,0.02594567,88009.0,87995.0,0.01154254]
[1766935554406,0.0682499,88013.0,87995.0,0.01154254]
[1766935554608,0.02594953,88012.0,87995.0,0.01154254]
[1766935554905,0.02594953,88011.0,87995.0,0.01154254]
[1766935555105,0.02594953,88010.0,87995.0,0.01154254]
[1766935555298,0.02594953,88009.0,87995.0,0.01154254]
[1766935555498,0.02594953,88008.0,87995.0,0.01154254]
[1766935555702,0.0682499,88013.0,87995.0,0.01154254]
[1766935555905,0.02595614,88012.0,87995.0,0.01154254]
[1766935556104,0.02595614,88011.0,87995.0,0.01154254]
[1766935556305,0.02595614,88010.0,87995.0,0.01154254]
[1766935556505,0.02595614,88009.0,87995.0,0.01154254]
[1766935556714,0.02595614,88008.0,87995.0,0.01154254]
[1766935556915,0.0682499,88013.0,87995.0,0.01154254]
[1766935557117,0.02595593,88012.0,87995.0,0.01154254]
[1766935557305,0.02595593,88011.0,87995.0,0.01154254]
[1766935557505,0.02595593,88010.0,87995.0,0.01154254]
[1766935557706,0.02595593,88009.0,87995.0,0.01154254]
[1766935557912,0.02595593,88008.0,87995.0,0.01154254]
[1766935558102,0.0682499,88013.0,87995.0,0.01154254]
[1766935558308,0.02595575,88012.0,87995.0,0.01154254]
[1766935558510,0.02595575,88011.0,87995.0,0.01154254]
[1766935558820,0.02595575,88010.0,87995.0,0.01154254]
[1766935559018,0.02595575,88009.0,87995.0,0.01154254]
[1766935559317,0.02595575,88008.0,87995.0,0.01154254]
[1766935559516,0.0682499,88013.0,87995.0,0.01154254]
[1766935559715,0.02595568,88012.0,87995.0,0.01154254]
[1766935559905,0.02595568,88011.0,87995.0,0.01154254]
[1766935560105,0.02595568,88010.0,87995.0,0.01154254]
[1766935560316,0.02595568,88009.0,87995.0,0.01154254]
[1766935560519,0.02595568,88008.0,87995.0,0.01154254]
[1766935560820,0.0682499,88013.0,87995.0,0.01154254]
[1766935561014,0.02595546,88012.0,87995.0,0.01154254]
[1766935561317,0.02595546,88011.0,87995.0,0.01154254]
[1766935561520,0.02595546,88010.0,87995.0,0.01154254]
[1766935561706,0.02595546,88009.0,87995.0,0.00017044]
[1766935561911,0.02595546,88008.0,87995.0,0.00017044]
[1766935562113,0.0113702,88011.0,87995.0,0.00017044]
[1766935562308,0.02595531,88010.0,87995.0,0.00017044]
[1766935562518,0.02595531,88009.0,87995.0,0.00017044]
[1766935562717,0.02595531,88008.0,87995.0,0.00017044]
[1766935562927,0.0113702,88011.0,87995.0,0.00017044]
[1766935563121,0.02595541,88010.0,87995.0,0.00017044]
[1766935563421,0.02595541,88009.0,87995.0,0.00017044]
[1766935563606,0.02595541,88008.0,87995.0,0.00017044]
[1766935563806,0.0113702,88011.0,87995.0,0.00017044]
[1766935564111,0.02595534,88010.0,87995.0,0.00017044]
[1766935564411,0.02595534,88009.0,87995.0,0.00017044]
[1766935564613,0.02595534,88008.0,87995.0,0.00017044]
[1766935564822,0.0113702,88011.0,87995.0,0.00017044]
[1766935565023,0.02595581,88010.0,87995.0,0.00017044]
[1766935565228,0.02595581,88009.0,87995.0,0.00017044]
[1766935565521,0.02595581,88008.0,87995.0,0.00017044]
[1766935565720,0.0113702,88011.0,87995.0,0.00017044]
[1766935565922,0.02595619,88010.0,87995.0,0.00017044]
[1766935566122,0.02595619,88009.0,87995.0,0.00017044]
[1766935566319,0.02595619,88008.0,87995.0,0.00017044]
[1766935566528,0.0113702,88011.0,87995.0,0.00017044]
[1766935566820,0.02595664,88010.0,87995.0,0.00017044]
[1766935567122,0.02595664,88009.0,87995.0,0.00017044]
[1766935567317,0.02595664,88008.0,87995.0,0.00017044]
[1766935567518,0.05688,88013.0,87995.0,0.00017044]
[1766935567725,0.0259573,88012.0,87995.0,0.00017044]
[1766935568017,0.0259573,88011.0,87995.0,0.00017044]
[1766935568218,0.0259573,88010.0,87995.0,0.00017044]
[1766935568519,0.0259573,88009.0,87995.0,0.00017044]
[1766935568721,0.0259573,88008.0,87995.0,0.00017044]
[1766935568920,0.0259573,88007.0,87995.0,0.00017044]
[1766935569121,0.01137,88012.0,87995.0,0.00017044]
[1766935569322,0.02595932,88011.0,87995.0,0.00017044]
[1766935569521,0.02595932,88010.0,87995.0,0.00017044]
[1766935569723,0.02595932,88009.0,87995.0,0.00017044]
[1766935570022,0.02595932,88008.0,87995.0,0.00017044]
[1766935570222,0.02595932,88007.0,87995.0,0.00017044]
[1766935570429,0.01137,88012.0,87995.0,0.00017044]
[1766935570620,0.02595956,88011.0,87995.0,0.00017044]
[1766935570822,0.02595956,88010.0,87995.0,0.00017044]
[1766935571122,0.02595956,88009.0,87995.0,0.00017044]
[1766935571321,0.02595956,88008.0,87995.0,0.00017044]
[1766935571515,0.02595956,88007.0,87995.0,0.00017044]
[1766935571721,0.01137,88012.0,87995.0,0.00017044]
[1766935571922,0.0259595,88011.0,87995.0,0.00017044]
[1766935572122,0.0259595,88010.0,87995.0,0.00017044]
[1766935572323,0.0259595,88009.0,87995.0,0.00017044]
[1766935572523,0.0259595,88008.0,87995.0,0.00017044]
[1766935572723,0.0259595,88007.0,87995.0,0.00017044]
[1766935572924,0.01137,88012.0,87995.0,0.00017044]
[1766935573129,0.02595948,88011.0,87995.0,0.00017044]
[1766935573324,0.02595948,88010.0,87995.0,0.00017044]
[1766935573525,0.02595948,88009.0,87995.0,0.00017044]
[1766935573822,0.02595948,88008.0,87995.0,0.00017044]
[1766935574023,0.02595948,88007.0,87996.0,0.011372]
[1766935574223,0.05688,88013.0,87996.0,0.011372]
[1766935574430,0.02595964,88012.0,87996.0,0.011372]
[1766935574625,0.02595964,88011.0,87996.0,0.011372]
[1766935574925,0.02595964,88010.0,87996.0,0.011372]
[1766935575125,0.02595964,88009.0,87996.0,0.011372]
[1766935575330,0.02595964,88008.0,87996.0,0.011372]
[1766935575528,0.02595964,88007.0,87996.0,0.011372]
[1766935575729,0.05688,88013.0,87996.0,0.011372]
[1766935575930,0.02595979,88012.0,87996.0,0.011372]
[1766935576129,0.02595979,88011.0,87996.0,0.011372]
[1766935576331,0.02595979,88010.0,87996.0,0.011372]
[1766935576532,0.02595979,88009.0,87996.0,0.011372]
[1766935576830,0.02595979,88008.0,87996.0,0.011372]
[1766935577021,0.02595979,88007.0,87996.0,0.011372]
[1766935577221,0.05688,88013.0,87996.0,0.011372]
[1766935577423,0.02596022,88012.0,87996.0,0.011372]
[1766935577627,0.02596022,88011.0,87996.0,0.011372]
[1766935577937,0.02596022,88010.0,87996.0,0.011372]
[1766935578129,0.02596022,88009.0,87996.0,0.011372]
[1766935578330,0.02596022,88008.0,87996.0,0.011372]
[1766935578533,0.02596022,88007.0,87996.0,0.011372]
[1766935578733,0.05688,88013.0,87996.0,0.011372]
[1766935579030,0.02596046,88012.0,87996.0,0.011372]
[1766935579229,0.02596046,88011.0,87996.0,0.011372]
[1766935579433,0.02596046,88010.0,87996.0,0.011372]
[1766935579629,0.02596046,88009.0,87996.0,0.011372]
[1766935579929,0.02596046,88008.0,87996.0,0.011372]
[1766935580132,0.02596046,88007.0,87996.0,0.011372]
[1766935580323,0.05688,88013.0,87996.0,0.011372]
[1766935580524,0.02596055,88012.0,87996.0,0.011372]
[1766935580724,0.02596055,88011.0,87996.0,0.011372]
[1766935580926,0.02596055,88010.0,87996.0,0.011372]
[1766935581122,0.02596055,88009.0,87996.0,0.011372]
[1766935581327,0.02596055,88008.0,87996.0,0.011372]
[1766935581528,0.05688,88013.0,87996.0,0.011372]
[1766935581732,0.02600193,88012.0,87996.0,0.011372]
[1766935582027,0.00822703,88011.0,87998.0,0.0113717]
[1766935582334,0.00017044,88014.0,87998.0,0.0113717]
[1766935582936,0.00017044,88014.0,87999.0,0.01777645]
[1766935583140,0.00017044,88014.0,88000.0,0.01777645]
[1766935583431,0.00017044,88014.0,87998.0,0.0113717]
[1766935583432,0.00017044,88014.0,88001.0,0.01777645]
[1766935583633,0.00017044,88014.0,88002.0,0.01777645]
[1766935583936,0.00017044,88014.0,87998.0,0.0113717]
[1766935586925,0.05688,88016.0,87998.0,0.0113717]
[1766935587130,0.05688,88019.0,87995.0,0.01154254]
[1766935587338,0.05688,88019.0,87996.0,0.01307343]
[1766935588034,0.00017044,88016.0,87996.0,0.01307343]
[1766935588236,0.01153994,88016.0,87996.0,0.01307343]
[1766935588431,0.01153994,88016.0,87995.0,0.01154254]
[1766935588630,0.0113698,88014.0,87995.0,0.01154254]
[1766935589131,0.01137,88012.0,87995.0,0.00017044]
[1766935589332,0.01137,88012.0,87996.0,0.01307343]